{"text_format":"3","workbook":"xlsx","n_sheets":2,"sheets":["ALOITUS","VUOSITTAINEN TYÖAIKARAPORTTI"],"not_rendered":{"defined_names":2},"read":"whole","date_system":"1900"}

{"sheet":"ALOITUS","index":0,"n_rows":8,"n_cols":2,"rows_kept":8}
[null,"TIETOJA TÄSTÄ MALLISTA"]
[null,"Seuraa työtuntejasi päivittäin, viikoittain, kuukausittain ja vuosittain tässä työntekijän kellokortti."]
[null,"Täytä siihen perustiedot, kuten työntekijän nimi, esimiehen nimi, sähköpostiosoite ja puhelinnumero. "]
[null,"Lisää työtuntisi jokaisen kuukauden taulukkoon. Kirjaa normaalit työtunnit ja ylityötunnit erillisiin sarakkeisiin jokaisen viikon jokaiselle viikonpäivälle. "]
[null,"Kokonaistyötunnit, normaalit työtunnit ja ylityötunnit lasketaan automaattisesti. "]
[null,"Muistiinpanot:"]
[null,"Lisäohjeita on annettu VUOSITTAINEN TYÖAIKARAPORTTI -laskentataulukon sarakkeessa A. Tämä teksti on piilotettu tarkoituksella. Jos haluat poistaa tekstiä, valitse sarake A ja valitse sitten POISTA. Jos haluat tuoda tekstin näkyviin, valitse sarake A ja muuta sitten fonttiväriä. "]
[null,"Jos haluat lisätietoja taulukoista, paina VAIHTO ja sitten F10 taulukossa, valitse TAULUKKO-vaihtoehto ja valitse sitten VAIHTOEHTOINEN TEKSTI."]

{"sheet":"VUOSITTAINEN TYÖAIKARAPORTTI","index":1,"n_rows":132,"n_cols":15,"rows_kept":132,"merged":[[0,1,0,2],[0,4,0,14],[10,6,10,7],[21,6,21,7],[32,6,32,7],[33,4,33,14],[43,6,43,7],[54,6,54,7],[65,6,65,7],[66,4,66,14],[76,6,76,7],[87,6,87,7],[98,6,98,7],[99,4,99,14],[109,6,109,7],[120,6,120,7],[131,6,131,7]]}
["Luo päivittäinen, viikoittainen, kuukausittainen tai vuosittainen työntekijän työaikaraportti tässä laskentataulukossa. \nTämän sarakkeen soluissa on hyödyllisiä ohjeita tämän työkirjan käytöstä. Aloita siirtymällä nuolella alaspäin.\nTämän laskentataulukon otsikko on solu oikealla, ja tammikuun, helmikuun ja maaliskuun vuosineljänneksen otsikko on solussa E1.","TYÖNTEKIJÄN \nKELLOKORTTI",null,null,"Tammikuu, helmikuu, maaliskuu      Työntekijän kellokortti: Päivittäin, viikoittain, kuukausittain, vuosittain"]
["Kirjoita työntekijän nimi soluun C2 sekä normaalit työtunnit ja ylityötunnit Tammikuu taulukkoon solusta E2 alkaen.","Työntekijän nimi:",null,null,"Tammikuu","Viikko 1","Ylityö","Viikko 2","Ylityö  ","Viikko 3","Ylityö   ","Viikko 4","Ylityö    ","Viikko 5","Ylityö     "]
["Kirjoita esimiehen nimi soluun C3.","Esimies:",null,null,"Maanantai",{"v":8,"d":"8.0"}]
["Kirjoita sähköpostiosoite soluun C4.","Sähköposti:",null,null,"Tiistai",{"v":8,"d":"8.0"},{"v":2,"d":"2.0"}]
["Kirjoita puhelinnumero soluun C5. Seuraava ohje on solussa A9.","Puhelin:",null,null,"Keskiviikko"]
[{"$nulls":4},"Torstai"]
[{"$nulls":4},"Perjantai"]
[{"$nulls":4},"Lauantai"]
["Vuosittaiset normaalit kokonaistyötunnit lasketaan automaattisesti solussa C9.","Normaalit_työtunnit:",{"$f":"Normaalit_työtunnit","v":31},null,"Sunnuntai"]
["Vuosittaiset kokonaisylityötunnit lasketaan automaattisesti solussa C10.","Ylityötunnit:",{"$f":"Ylityötunnit","v":4},null,"Viikoittaiset työtunnit yhteensä",{"$f":"SUM(F3:F9)","v":{"v":16,"d":"16.0"}},{"v":2,"d":"2.0"},{"v":0,"d":"0.0"},{"v":0,"d":"0.0"},{"v":0,"d":"0.0"},{"v":0,"d":"0.0"},{"v":0,"d":"0.0"},{"v":0,"d":"0.0"},{"v":0,"d":"0.0"},{"v":0,"d":"0.0"}]
["Vuosittaiset yleiset kokonaistyötunnit lasketaan automaattisesti solussa C11. Tammikuun normaalit kokonaistyötunnit solussa F11 ja tammikuun kokonaisylityötunnit solussa I11 lasketaan automaattisesti. Seuraava ohje on solussa A13.","Yhteensä",{"$f":"Normaalit_työtunnit+Ylityötunnit","v":35},null,{"$f":"TEXT(DATEVALUE(Tammikuu[[#Headers],[Tammikuu]]&\"  \"&YEAR(TODAY())),\"kkk.\")&\" yhteensä: Normaalit työtunnit\"","v":"tammi. yhteensä: Normaalit työtunnit"},{"$f":"SUM(Tammikuu[Viikko 1],Tammikuu[Viikko 2],Tammikuu[Viikko 3],Tammikuu[Viikko 4],Tammikuu[Viikko 5])","v":{"v":16,"d":"16.0"}},{"$f":"TEXT(DATEVALUE(Tammikuu[[#Headers],[Tammikuu]]&\"  \"&YEAR(TODAY())),\"kkk.\")&\" yhteensä: Ylityö\"","v":"tammi. yhteensä: Ylityö"},null,{"$f":"SUM(Tammikuu[Ylityö],Tammikuu[[Ylityö  ]],Tammikuu[[Ylityö   ]],Tammikuu[[Ylityö    ]],Tammikuu[[Ylityö     ]])","v":{"v":2,"d":"2.0"}}]
[]
["Kirjoita normaalit työtunnit ja ylityötunnit Helmikuu taulukkoon solusta E13 alkaen. Seuraava ohje on solussa A22.",{"$nulls":3},"Helmikuu","Viikko 1","Ylityö","Viikko 2","Ylityö  ","Viikko 3","Ylityö   ","Viikko 4","Ylityö    ","Viikko 5","Ylityö     "]
[{"$nulls":4},"Maanantai",{"v":8,"d":"8.0"}]
[{"$nulls":4},"Tiistai",{"v":7,"d":"7.0"},{"v":2,"d":"2.0"}]
[{"$nulls":4},"Keskiviikko"]
[{"$nulls":4},"Torstai"]
[{"$nulls":4},"Perjantai"]
[{"$nulls":4},"Lauantai"]
[{"$nulls":4},"Sunnuntai"]
[{"$nulls":4},"Viikoittaiset työtunnit yhteensä",{"$f":"SUM(F14:F20)","v":{"v":15,"d":"15.0"}},{"v":2,"d":"2.0"},{"v":0,"d":"0.0"},{"v":0,"d":"0.0"},{"v":0,"d":"0.0"},{"v":0,"d":"0.0"},{"v":0,"d":"0.0"},{"v":0,"d":"0.0"},{"v":0,"d":"0.0"},{"v":0,"d":"0.0"}]
["Helmikuun normaalit kokonaistyötunnit solussa F22 ja helmikuun kokonaisylityötunnit solussa I22 lasketaan automaattisesti. Seuraava ohje on solussa A24.",{"$nulls":3},{"$f":"TEXT(DATEVALUE(Helmikuu[[#Headers],[Helmikuu]]&\"  \"&YEAR(TODAY())),\"kkk.\")&\" yhteensä: Normaalit työtunnit\"","v":"helmi. yhteensä: Normaalit työtunnit"},{"$f":"SUM(Helmikuu[Viikko 1],Helmikuu[Viikko 2],Helmikuu[Viikko 3],Helmikuu[Viikko 4],Helmikuu[Viikko 5])","v":{"v":15,"d":"15.0"}},{"$f":"TEXT(DATEVALUE(Helmikuu[[#Headers],[Helmikuu]]&\" \"&YEAR(TODAY())),\"kkk.\")&\" yhteensä: Ylityö\"","v":"helmi. yhteensä: Ylityö"},null,{"$f":"SUM(Helmikuu[Ylityö],Helmikuu[[Ylityö  ]],Helmikuu[[Ylityö   ]],Helmikuu[[Ylityö    ]],Helmikuu[[Ylityö     ]])","v":{"v":2,"d":"2.0"}}]
[]
["Kirjoita normaalit työtunnit ja ylityötunnit Maaliskuu taulukkoon solusta E24 alkaen. Seuraava ohje on solussa A33.",{"$nulls":3},"Maaliskuu","Viikko 1","Ylityö","Viikko 2","Ylityö ","Viikko 3","Ylityö  ","Viikko 4","Ylityö    ","Viikko 5","Ylityö     "]
[{"$nulls":4},"Maanantai"]
[{"$nulls":4},"Tiistai"]
[{"$nulls":4},"Keskiviikko"]
[{"$nulls":4},"Torstai"]
[{"$nulls":4},"Perjantai"]
[{"$nulls":4},"Lauantai"]
[{"$nulls":4},"Sunnuntai"]
[{"$nulls":4},"Viikoittaiset työtunnit yhteensä",{"$f":"SUM(F25:F31)","v":{"v":0,"d":"0.0"}},{"v":0,"d":"0.0"},{"v":0,"d":"0.0"},{"v":0,"d":"0.0"},{"v":0,"d":"0.0"},{"v":0,"d":"0.0"},{"v":0,"d":"0.0"},{"v":0,"d":"0.0"},{"v":0,"d":"0.0"},{"v":0,"d":"0.0"}]
["Maaliskuun normaalit kokonaistyötunnit solussa F33 ja maaliskuun kokonaisylityötunnit solussa I33 lasketaan automaattisesti.",{"$nulls":3},{"$f":"TEXT(DATEVALUE(Maaliskuu[[#Headers],[Maaliskuu]]&\" \"&YEAR(TODAY())),\"kkk.\")&\" yhteensä: Normaalit työtunnit\"","v":"maalis. yhteensä: Normaalit työtunnit"},{"$f":"SUM(Maaliskuu[Viikko 1],Maaliskuu[Viikko 2],Maaliskuu[Viikko 3],Maaliskuu[Viikko 4],Maaliskuu[Viikko 5])","v":{"v":0,"d":"0.0"}},{"$f":"TEXT(DATEVALUE(Maaliskuu[[#Headers],[Maaliskuu]]&\" \"&YEAR(TODAY())),\"kkk.\")&\" yhteensä: Ylityö\"","v":"maalis. yhteensä: Ylityö"},null,{"$f":"SUM(Maaliskuu[Ylityö],Maaliskuu[[Ylityö ]],Maaliskuu[[Ylityö  ]],Maaliskuu[[Ylityö    ]],Maaliskuu[[Ylityö     ]])","v":{"v":0,"d":"0.0"}}]
["Huhtikuun, toukokuun ja kesäkuun toisen vuosineljänneksen otsikko on solussa E34. ",{"$nulls":3},"Huhtikuu, toukokuu, kesäkuu      Työntekijän kellokortti: Päivittäin, viikoittain, kuukausittain, vuosittain"]
["Kirjoita Huhtikuu normaalit työtunnit ja ylityötunnit taulukkoon solusta E35 alkaen. Seuraava ohje on solussa A44.",{"$nulls":3},"Huhtikuu","Viikko 1","Ylityö","Viikko 2","Ylityö  ","Viikko 3","Ylityö   ","Viikko 4","Ylityö    ","Viikko 5","Ylityö     "]
[{"$nulls":4},"Maanantai"]
[{"$nulls":4},"Tiistai"]
[{"$nulls":4},"Keskiviikko"]
[{"$nulls":4},"Torstai"]
[{"$nulls":4},"Perjantai"]
[{"$nulls":4},"Lauantai"]
[{"$nulls":4},"Sunnuntai"]
[{"$nulls":4},"Viikoittaiset työtunnit yhteensä",{"$f":"SUM(F36:F42)","v":{"v":0,"d":"0.0"}},{"v":0,"d":"0.0"},{"v":0,"d":"0.0"},{"v":0,"d":"0.0"},{"v":0,"d":"0.0"},{"v":0,"d":"0.0"},{"v":0,"d":"0.0"},{"v":0,"d":"0.0"},{"v":0,"d":"0.0"},{"v":0,"d":"0.0"}]
["Huhtikuun normaalit kokonaistyötunnit solussa F44 ja huhtikuun kokonaisylityötunnit solussa I44 lasketaan automaattisesti. Seuraava ohje on solussa A46.",{"$nulls":3},{"$f":"TEXT(DATEVALUE(Huhtikuu[[#Headers],[Huhtikuu]]&\" \"&YEAR(TODAY())),\"kkk.\")&\" yhteensä: Normaalit työtunnit\"","v":"huhti. yhteensä: Normaalit työtunnit"},{"$f":"SUM(Huhtikuu[Viikko 1],Huhtikuu[Viikko 2],Huhtikuu[Viikko 3],Huhtikuu[Viikko 4],Huhtikuu[Viikko 5])","v":{"v":0,"d":"0.0"}},{"$f":"TEXT(DATEVALUE(Huhtikuu[[#Headers],[Huhtikuu]]&\" \"&YEAR(TODAY())),\"kkk.\")&\" yhteensä: Ylityö\"","v":"huhti. yhteensä: Ylityö"},null,{"$f":"SUM(Huhtikuu[Ylityö],Huhtikuu[[Ylityö  ]],Huhtikuu[[Ylityö   ]],Huhtikuu[[Ylityö    ]],Huhtikuu[[Ylityö     ]])","v":{"v":0,"d":"0.0"}}]
[]
["Kirjoita normaalit työtunnit ja ylityötunnit Toukokuu taulukkoon solusta E46 alkaen. Seuraava ohje on solussa A55.",{"$nulls":3},"Toukokuu","Viikko 1","Ylityö","Viikko 2","Ylityö  ","Viikko 3","Ylityö   ","Viikko 4","Ylityö    ","Viikko 5","Ylityö     "]
[{"$nulls":4},"Maanantai"]
[{"$nulls":4},"Tiistai"]
[{"$nulls":4},"Keskiviikko"]
[{"$nulls":4},"Torstai"]
[{"$nulls":4},"Perjantai"]
[{"$nulls":4},"Lauantai"]
[{"$nulls":4},"Sunnuntai"]
[{"$nulls":4},"Viikoittaiset työtunnit yhteensä",{"$f":"SUM(F47:F53)","v":{"v":0,"d":"0.0"}},{"v":0,"d":"0.0"},{"v":0,"d":"0.0"},{"v":0,"d":"0.0"},{"v":0,"d":"0.0"},{"v":0,"d":"0.0"},{"v":0,"d":"0.0"},{"v":0,"d":"0.0"},{"v":0,"d":"0.0"},{"v":0,"d":"0.0"}]
["Toukokuun normaalit kokonaistyötunnit solussa F55 ja toukokuun kokonaisylityötunnit solussa I55 lasketaan automaattisesti. Seuraava ohje on solussa A57.",{"$nulls":3},{"$f":"TEXT(DATEVALUE(Toukokuu[[#Headers],[Toukokuu]]&\" \"&YEAR(TODAY())),\"kkk.\")&\" yhteensä: Normaalit työtunnit\"","v":"touko. yhteensä: Normaalit työtunnit"},{"$f":"SUM(Toukokuu[Viikko 1],Toukokuu[Viikko 2],Toukokuu[Viikko 3],Toukokuu[Viikko 4],Toukokuu[Viikko 5])","v":{"v":0,"d":"0.0"}},{"$f":"TEXT(DATEVALUE(Toukokuu[[#Headers],[Toukokuu]]&\" \"&YEAR(TODAY())),\"kkk.\")&\" yhteensä: Ylityö\"","v":"touko. yhteensä: Ylityö"},null,{"$f":"SUM(Toukokuu[Ylityö],Toukokuu[[Ylityö  ]],Toukokuu[[Ylityö   ]],Toukokuu[[Ylityö    ]],Toukokuu[[Ylityö     ]])","v":{"v":0,"d":"0.0"}}]
[]
["Kirjoita Kesäkuu normaalit työtunnit ja ylityötunnit taulukkoon solusta E57 alkaen. Seuraava ohje on solussa A66.",{"$nulls":3},"Kesäkuu","Viikko 1","Ylityö","Viikko 2","Ylityö  ","Viikko 3","Ylityö   ","Viikko 4","Ylityö    ","Viikko 5","Ylityö     "]
[{"$nulls":4},"Maanantai"]
[{"$nulls":4},"Tiistai"]
[{"$nulls":4},"Keskiviikko"]
[{"$nulls":4},"Torstai"]
[{"$nulls":4},"Perjantai"]
[{"$nulls":4},"Lauantai"]
[{"$nulls":4},"Sunnuntai"]
[{"$nulls":4},"Viikoittaiset työtunnit yhteensä",{"$f":"SUM(F58:F64)","v":{"v":0,"d":"0.0"}},{"v":0,"d":"0.0"},{"v":0,"d":"0.0"},{"v":0,"d":"0.0"},{"v":0,"d":"0.0"},{"v":0,"d":"0.0"},{"v":0,"d":"0.0"},{"v":0,"d":"0.0"},{"v":0,"d":"0.0"},{"v":0,"d":"0.0"}]
["Kesäkuun normaalit kokonaistyötunnit solussa F66 ja kesäkuun kokonaisylityötunnit solussa I66 lasketaan automaattisesti.",{"$nulls":3},{"$f":"TEXT(DATEVALUE(Kesäkuu[[#Headers],[Kesäkuu]]&\" \"&YEAR(TODAY())),\"kkk.\")&\" yhteensä: Normaalit työtunnit\"","v":"kesä. yhteensä: Normaalit työtunnit"},{"$f":"SUM(Kesäkuu[Viikko 1],Kesäkuu[Viikko 2],Kesäkuu[Viikko 3],Kesäkuu[Viikko 4],Kesäkuu[Viikko 5])","v":{"v":0,"d":"0.0"}},{"$f":"TEXT(DATEVALUE(Kesäkuu[[#Headers],[Kesäkuu]]&\" \"&YEAR(TODAY())),\"kkk.\")&\" yhteensä: Ylityö\"","v":"kesä. yhteensä: Ylityö"},null,{"$f":"SUM(Kesäkuu[Ylityö],Kesäkuu[[Ylityö  ]],Kesäkuu[[Ylityö   ]],Kesäkuu[[Ylityö    ]],Kesäkuu[[Ylityö     ]])","v":{"v":0,"d":"0.0"}}]
["Heinäkuun, elokuun ja syyskuun kolmannen vuosineljänneksen otsikko on solussa E67. ",{"$nulls":3},"Heinäkuu, elokuu, syyskuu      Työntekijän kellokortti: Päivittäin, viikoittain, kuukausittain, vuosittain"]
["Kirjoita normaalit työtunnit ja ylityötunnit Heinäkuu taulukkoon solusta E68 alkaen. Seuraava ohje on solussa A77.",{"$nulls":3},"Heinäkuu","Viikko 1","Ylityö","Viikko 2","Ylityö ","Viikko 3","Ylityö  ","Viikko 4","Ylityö   ","Viikko 5","Ylityö     "]
[{"$nulls":4},"Maanantai"]
[{"$nulls":4},"Tiistai"]
[{"$nulls":4},"Keskiviikko"]
[{"$nulls":4},"Torstai"]
[{"$nulls":4},"Perjantai"]
[{"$nulls":4},"Lauantai"]
[{"$nulls":4},"Sunnuntai"]
[{"$nulls":4},"Viikoittaiset työtunnit yhteensä",{"$f":"SUM(F69:F75)","v":{"v":0,"d":"0.0"}},{"v":0,"d":"0.0"},{"v":0,"d":"0.0"},{"v":0,"d":"0.0"},{"v":0,"d":"0.0"},{"v":0,"d":"0.0"},{"v":0,"d":"0.0"},{"v":0,"d":"0.0"},{"v":0,"d":"0.0"},{"v":0,"d":"0.0"}]
["Heinäkuun normaalit kokonaistyötunnit solussa F77 ja heinäkuun kokonaisylityötunnit solussa I77 lasketaan automaattisesti. Seuraava ohje on solussa A79.",{"$nulls":3},{"$f":"TEXT(DATEVALUE(Heinäkuu[[#Headers],[Heinäkuu]]&\" \"&YEAR(TODAY())),\"kkk.\")&\" yhteensä: Normaalit työtunnit\"","v":"heinä. yhteensä: Normaalit työtunnit"},{"$f":"SUM(Heinäkuu[Viikko 1],Heinäkuu[Viikko 2],Heinäkuu[Viikko 3],Heinäkuu[Viikko 4],Heinäkuu[Viikko 5])","v":{"v":0,"d":"0.0"}},{"$f":"TEXT(DATEVALUE(Heinäkuu[[#Headers],[Heinäkuu]]&\" \"&YEAR(TODAY())),\"kkk.\")&\" yhteensä: Ylityö\"","v":"heinä. yhteensä: Ylityö"},null,{"$f":"SUM(Heinäkuu[Ylityö],Heinäkuu[[Ylityö ]],Heinäkuu[[Ylityö  ]],Heinäkuu[[Ylityö   ]],Heinäkuu[[Ylityö     ]])","v":{"v":0,"d":"0.0"}}]
[]
["Kirjoita Elokuu normaalit työtunnit ja ylityötunnit taulukkoon solusta E79 alkaen. Seuraava ohje on solussa A88.",{"$nulls":3},"Elokuu","Viikko 1","Ylityö","Viikko 2","Ylityö ","Viikko 3","Ylityö   ","Viikko 4","Ylityö  ","Viikko 5","Ylityö    "]
[{"$nulls":4},"Maanantai"]
[{"$nulls":4},"Tiistai"]
[{"$nulls":4},"Keskiviikko"]
[{"$nulls":4},"Torstai"]
[{"$nulls":4},"Perjantai"]
[{"$nulls":4},"Lauantai"]
[{"$nulls":4},"Sunnuntai"]
[{"$nulls":4},"Viikoittaiset työtunnit yhteensä",{"$f":"SUBTOTAL(109,Elokuu[Viikko 1])","v":{"v":0,"d":"0.0"}},{"$f":"SUBTOTAL(109,Elokuu[Ylityö])","v":{"v":0,"d":"0.0"}},{"$f":"SUBTOTAL(109,Elokuu[Viikko 2])","v":{"v":0,"d":"0.0"}},{"$f":"SUBTOTAL(109,Elokuu[[Ylityö ]])","v":{"v":0,"d":"0.0"}},{"$f":"SUBTOTAL(109,Elokuu[Viikko 3])","v":{"v":0,"d":"0.0"}},{"$f":"SUBTOTAL(109,Elokuu[[Ylityö   ]])","v":{"v":0,"d":"0.0"}},{"$f":"SUBTOTAL(109,Elokuu[Viikko 4])","v":{"v":0,"d":"0.0"}},{"$f":"SUBTOTAL(109,Elokuu[[Ylityö  ]])","v":{"v":0,"d":"0.0"}},{"$f":"SUBTOTAL(109,Elokuu[Viikko 5])","v":{"v":0,"d":"0.0"}},{"$f":"SUBTOTAL(109,Elokuu[[Ylityö    ]])","v":{"v":0,"d":"0.0"}}]
["Elokuun normaalit kokonaistyötunnit solussa F88 ja elokuun kokonaisylityötunnit solussa I88 lasketaan automaattisesti. Seuraava ohje on solussa A90.",{"$nulls":3},{"$f":"TEXT(DATEVALUE(Elokuu[[#Headers],[Elokuu]]&\" \"&YEAR(TODAY())),\"kkk.\")&\" yhteensä: Normaalit työtunnit\"","v":"elo. yhteensä: Normaalit työtunnit"},{"$f":"SUM(Elokuu[Viikko 1],Elokuu[Viikko 2],Elokuu[Viikko 3],Elokuu[Viikko 4],Elokuu[Viikko 5])","v":{"v":0,"d":"0.0"}},{"$f":"TEXT(DATEVALUE(Elokuu[[#Headers],[Elokuu]]&\" \"&YEAR(TODAY())),\"kkk.\")&\" yhteensä: Ylityö\"","v":"elo. yhteensä: Ylityö"},null,{"$f":"SUM(Elokuu[Ylityö],Elokuu[[Ylityö ]],Elokuu[[Ylityö   ]],Elokuu[[Ylityö  ]],Elokuu[[Ylityö    ]])","v":{"v":0,"d":"0.0"}}]
[]
["Kirjoita normaalit työtunnit ja ylityötunnit Syyskuu taulukkoon solusta E90 alkaen. Seuraava ohje on solussa A99.",{"$nulls":3},"Syyskuu","Viikko 1","Ylityö","Viikko 2","Ylityö ","Viikko 3","Ylityö  ","Viikko 4","Ylityö   ","Viikko 5","Ylityö    "]
[{"$nulls":4},"Maanantai"]
[{"$nulls":4},"Tiistai"]
[{"$nulls":4},"Keskiviikko"]
[{"$nulls":4},"Torstai"]
[{"$nulls":4},"Perjantai"]
[{"$nulls":4},"Lauantai"]
[{"$nulls":4},"Sunnuntai"]
[{"$nulls":4},"Viikoittaiset työtunnit yhteensä",{"$f":"SUBTOTAL(109,Syyskuu[Viikko 1])","v":{"v":0,"d":"0.0"}},{"$f":"SUBTOTAL(109,Syyskuu[Ylityö])","v":{"v":0,"d":"0.0"}},{"$f":"SUBTOTAL(109,Syyskuu[Viikko 2])","v":{"v":0,"d":"0.0"}},{"$f":"SUBTOTAL(109,Syyskuu[[Ylityö ]])","v":{"v":0,"d":"0.0"}},{"$f":"SUBTOTAL(109,Syyskuu[Viikko 3])","v":{"v":0,"d":"0.0"}},{"$f":"SUBTOTAL(109,Syyskuu[[Ylityö  ]])","v":{"v":0,"d":"0.0"}},{"$f":"SUBTOTAL(109,Syyskuu[Viikko 4])","v":{"v":0,"d":"0.0"}},{"$f":"SUBTOTAL(109,Syyskuu[[Ylityö   ]])","v":{"v":0,"d":"0.0"}},{"$f":"SUBTOTAL(109,Syyskuu[Viikko 5])","v":{"v":0,"d":"0.0"}},{"$f":"SUBTOTAL(109,Syyskuu[[Ylityö    ]])","v":{"v":0,"d":"0.0"}}]
["Syyskuun normaalit kokonaistyötunnit solussa F99 ja syyskuun kokonaisylityötunnit solussa I99 lasketaan automaattisesti.",{"$nulls":3},{"$f":"TEXT(DATEVALUE(Syyskuu[[#Headers],[Syyskuu]]&\" \"&YEAR(TODAY())),\"kkk.\")&\" yhteensä: Normaalit työtunnit\"","v":"syys. yhteensä: Normaalit työtunnit"},{"$f":"SUM(Syyskuu[Viikko 1],Syyskuu[Viikko 2],Syyskuu[Viikko 3],Syyskuu[Viikko 4],Syyskuu[Viikko 5])","v":{"v":0,"d":"0.0"}},{"$f":"TEXT(DATEVALUE(Syyskuu[[#Headers],[Syyskuu]]&\" \"&YEAR(TODAY())),\"kkk.\")&\" yhteensä: Ylityö\"","v":"syys. yhteensä: Ylityö"},null,{"$f":"SUM(Syyskuu[Ylityö],Syyskuu[[Ylityö ]],Syyskuu[[Ylityö  ]],Syyskuu[[Ylityö   ]],Syyskuu[[Ylityö    ]])","v":{"v":0,"d":"0.0"}}]
["Lokakuun, marraskuun ja joulukuun neljännen vuosineljänneksen otsikko on solussa E100. ",{"$nulls":3},"Lokakuu, marraskuu, joulukuu      Työntekijän kellokortti: Päivittäin, viikoittain, kuukausittain, vuosittain"]
["Kirjoita Lokakuu normaalit työtunnit ja ylityötunnit taulukkoon solusta E101 alkaen. Seuraava ohje on solussa A110.",{"$nulls":3},"Lokakuu","Viikko 1","Ylityö","Viikko 2","Ylityö ","Viikko 3","Ylityö  ","Viikko 4","Ylityö   ","Viikko 5","Ylityö    "]
[{"$nulls":4},"Maanantai"]
[{"$nulls":4},"Tiistai"]
[{"$nulls":4},"Keskiviikko"]
[{"$nulls":4},"Torstai"]
[{"$nulls":4},"Perjantai"]
[{"$nulls":4},"Lauantai"]
[{"$nulls":4},"Sunnuntai"]
[{"$nulls":4},"Viikoittaiset työtunnit yhteensä",{"$f":"SUBTOTAL(109,Lokakuu[Viikko 1])","v":{"v":0,"d":"0.0"}},{"$f":"SUBTOTAL(109,Lokakuu[Ylityö])","v":{"v":0,"d":"0.0"}},{"$f":"SUBTOTAL(109,Lokakuu[Viikko 2])","v":{"v":0,"d":"0.0"}},{"$f":"SUBTOTAL(109,Lokakuu[[Ylityö ]])","v":{"v":0,"d":"0.0"}},{"$f":"SUBTOTAL(109,Lokakuu[Viikko 3])","v":{"v":0,"d":"0.0"}},{"$f":"SUBTOTAL(109,Lokakuu[[Ylityö  ]])","v":{"v":0,"d":"0.0"}},{"$f":"SUBTOTAL(109,Lokakuu[Viikko 4])","v":{"v":0,"d":"0.0"}},{"$f":"SUBTOTAL(109,Lokakuu[[Ylityö   ]])","v":{"v":0,"d":"0.0"}},{"$f":"SUBTOTAL(109,Lokakuu[Viikko 5])","v":{"v":0,"d":"0.0"}},{"$f":"SUBTOTAL(109,Lokakuu[[Ylityö    ]])","v":{"v":0,"d":"0.0"}}]
["Lokakuun normaalit kokonaistyötunnit solussa F110 ja lokakuun kokonaisylityötunnit solussa I110 lasketaan automaattisesti. Seuraava ohje on solussa A112.",{"$nulls":3},{"$f":"TEXT(DATEVALUE(Lokakuu[[#Headers],[Lokakuu]]&\" \"&YEAR(TODAY())),\"kkk.\")&\" yhteensä: Normaalit työtunnit\"","v":"loka. yhteensä: Normaalit työtunnit"},{"$f":"SUM(Lokakuu[Viikko 1],Lokakuu[Viikko 2],Lokakuu[Viikko 3],Lokakuu[Viikko 4],Lokakuu[Viikko 5])","v":{"v":0,"d":"0.0"}},{"$f":"TEXT(DATEVALUE(Lokakuu[[#Headers],[Lokakuu]]&\" \"&YEAR(TODAY())),\"kkk.\")&\" yhteensä: Ylityö\"","v":"loka. yhteensä: Ylityö"},null,{"$f":"SUM(Lokakuu[Ylityö],Lokakuu[[Ylityö ]],Lokakuu[[Ylityö  ]],Lokakuu[[Ylityö   ]],Lokakuu[[Ylityö    ]])","v":{"v":0,"d":"0.0"}}]
[]
["Kirjoita normaalit työtunnit ja ylityötunnit Marraskuu taulukkoon solusta E112 alkaen. Seuraava ohje on solussa A121.",{"$nulls":3},"Marraskuu","Viikko 1","Ylityö","Viikko 2","Ylityö ","Viikko 3","Ylityö  ","Viikko 4","Ylityö    ","Viikko 5","Ylityö     "]
[{"$nulls":4},"Maanantai"]
[{"$nulls":4},"Tiistai"]
[{"$nulls":4},"Keskiviikko"]
[{"$nulls":4},"Torstai"]
[{"$nulls":4},"Perjantai"]
[{"$nulls":4},"Lauantai"]
[{"$nulls":4},"Sunnuntai"]
[{"$nulls":4},"Viikoittaiset työtunnit yhteensä",{"$f":"SUBTOTAL(109,Marraskuu[Viikko 1])","v":{"v":0,"d":"0.0"}},{"$f":"SUBTOTAL(109,Marraskuu[Ylityö])","v":{"v":0,"d":"0.0"}},{"$f":"SUBTOTAL(109,Marraskuu[Viikko 2])","v":{"v":0,"d":"0.0"}},{"$f":"SUBTOTAL(109,Marraskuu[[Ylityö ]])","v":{"v":0,"d":"0.0"}},{"$f":"SUBTOTAL(109,Marraskuu[Viikko 3])","v":{"v":0,"d":"0.0"}},{"$f":"SUBTOTAL(109,Marraskuu[[Ylityö  ]])","v":{"v":0,"d":"0.0"}},{"$f":"SUBTOTAL(109,Marraskuu[Viikko 4])","v":{"v":0,"d":"0.0"}},{"$f":"SUBTOTAL(109,Marraskuu[[Ylityö    ]])","v":{"v":0,"d":"0.0"}},{"$f":"SUBTOTAL(109,Marraskuu[Viikko 5])","v":{"v":0,"d":"0.0"}},{"$f":"SUBTOTAL(109,Marraskuu[[Ylityö     ]])","v":{"v":0,"d":"0.0"}}]
["Marraskuun normaalit kokonaistyötunnit solussa F121 ja marraskuun kokonaisylityötunnit solussa I121 lasketaan automaattisesti. Seuraava ohje on solussa A123.",{"$nulls":3},{"$f":"TEXT(DATEVALUE(Marraskuu[[#Headers],[Marraskuu]]&\" \"&YEAR(TODAY())),\"kkk.\")&\" yhteensä: Normaalit työtunnit\"","v":"marras. yhteensä: Normaalit työtunnit"},{"$f":"SUM(Marraskuu[Viikko 1],Marraskuu[Viikko 2],Marraskuu[Viikko 3],Marraskuu[Viikko 4],Marraskuu[Viikko 5])","v":{"v":0,"d":"0.0"}},{"$f":"TEXT(DATEVALUE(Marraskuu[[#Headers],[Marraskuu]]&\" \"&YEAR(TODAY())),\"kkk.\")&\" yhteensä: Ylityö\"","v":"marras. yhteensä: Ylityö"},null,{"$f":"SUM(Marraskuu[Ylityö],Marraskuu[[Ylityö ]],Marraskuu[[Ylityö  ]],Marraskuu[[Ylityö    ]],Marraskuu[[Ylityö     ]])","v":{"v":0,"d":"0.0"}}]
[]
["Kirjoita normaalit työtunnit ja ylityötunnit Joulukuu taulukkoon solusta E123 alkaen. Seuraava ohje on solussa A132.",{"$nulls":3},"Joulukuu","Viikko 1","Ylityö","Viikko 2","Ylityö ","Viikko 3","Ylityö  ","Viikko 4","Ylityö   ","Viikko 5","Ylityö    "]
[{"$nulls":4},"Maanantai"]
[{"$nulls":4},"Tiistai"]
[{"$nulls":4},"Keskiviikko"]
[{"$nulls":4},"Torstai"]
[{"$nulls":4},"Perjantai"]
[{"$nulls":4},"Lauantai"]
[{"$nulls":4},"Sunnuntai"]
[{"$nulls":4},"Viikoittaiset työtunnit yhteensä",{"$f":"SUBTOTAL(109,Joulukuu[Viikko 1])","v":{"v":0,"d":"0.0"}},{"$f":"SUBTOTAL(109,Joulukuu[Ylityö])","v":{"v":0,"d":"0.0"}},{"$f":"SUBTOTAL(109,Joulukuu[Viikko 2])","v":{"v":0,"d":"0.0"}},{"$f":"SUBTOTAL(109,Joulukuu[[Ylityö ]])","v":{"v":0,"d":"0.0"}},{"$f":"SUBTOTAL(109,Joulukuu[Viikko 3])","v":{"v":0,"d":"0.0"}},{"$f":"SUBTOTAL(109,Joulukuu[[Ylityö  ]])","v":{"v":0,"d":"0.0"}},{"$f":"SUBTOTAL(109,Joulukuu[Viikko 4])","v":{"v":0,"d":"0.0"}},{"$f":"SUBTOTAL(109,Joulukuu[[Ylityö   ]])","v":{"v":0,"d":"0.0"}},{"$f":"SUBTOTAL(109,Joulukuu[Viikko 5])","v":{"v":0,"d":"0.0"}},{"$f":"SUBTOTAL(109,Joulukuu[[Ylityö    ]])","v":{"v":0,"d":"0.0"}}]
["Joulukuun normaalit kokonaistyötunnit solussa F132 ja joulukuun kokonaisylityötunnit solussa I132 lasketaan automaattisesti.",{"$nulls":3},{"$f":"TEXT(DATEVALUE(Joulukuu[[#Headers],[Joulukuu]]&\" \"&YEAR(TODAY())),\"kkk.\")&\" yhteensä: Normaalit työtunnit\"","v":"joulu. yhteensä: Normaalit työtunnit"},{"$f":"SUM(Joulukuu[Viikko 1],Joulukuu[Viikko 2],Joulukuu[Viikko 3],Joulukuu[Viikko 4],Joulukuu[Viikko 5])","v":{"v":0,"d":"0.0"}},{"$f":"TEXT(DATEVALUE(Joulukuu[[#Headers],[Joulukuu]]&\" \"&YEAR(TODAY())),\"kkk.\")&\" yhteensä: Ylityö\"","v":"joulu. yhteensä: Ylityö"},null,{"$f":"SUM(G124:G130,I124:I130,K124:K130,M124:M130,O124:O130)","v":{"v":0,"d":"0.0"}}]